bitfinex/quotes_BTCUSD_20250610
["timestamp","ask_amount","ask_price","bid_price","bid_amount"]
[1749583278173,0.06718463,109590.0,109580.0,1.7153265]
[1749583278388,0.06718463,109590.0,109580.0,1.7103265]
[1749583278600,0.06718463,109590.0,109580.0,1.72245166]
[1749583278824,0.06718463,109590.0,109580.0,1.72745166]
[1749583279260,0.00248463,109590.0,109580.0,1.80235166]
[1749583279465,0.00248463,109590.0,109580.0,2.48327236]
[1749583279676,0.00248463,109590.0,109580.0,2.60833706]
[1749583279885,0.00248463,109590.0,109580.0,2.01607336]
[1749583281196,0.00248463,109590.0,109580.0,1.26543266]
[1749583281418,0.00248463,109590.0,109580.0,1.95465336]
[1749583282497,0.6477407,109650.0,109640.0,0.25]
[1749583282721,0.6477407,109650.0,109640.0,0.59566]
[1749583282961,0.64888614,109650.0,109640.0,0.57486]
[1749583283385,0.02926544,109650.0,109640.0,0.60177073]
[1749583283818,0.01021594,109650.0,109640.0,0.57486]
[1749583284069,0.01021594,109650.0,109640.0,0.62944097]
[1749583284283,0.00921594,109650.0,109640.0,0.62944097]
[1749583284494,0.34921594,109650.0,109640.0,0.62944097]
[1749583284701,0.96883664,109650.0,109640.0,0.62944097]
[1749583285548,1.06848451,109650.0,109640.0,0.62944097]
[1749583285752,1.09606157,109650.0,109640.0,0.62944097]
[1749583285962,0.376793,109650.0,109640.0,0.62944097]
[1749583286167,1.09606157,109650.0,109640.0,0.62944097]
[1749583286381,0.376793,109650.0,109640.0,0.6453446]
[1749583286640,1.09606157,109650.0,109640.0,0.6453446]
[1749583287926,0.376793,109650.0,109640.0,1.36461317]
[1749583288147,0.376793,109650.0,109640.0,1.26485317]
[1749583288358,0.376793,109650.0,109640.0,1.36457317]
[1749583288780,0.376793,109650.0,109640.0,1.1184046]
[1749583288996,0.376793,109650.0,109640.0,1.83767317]
[1749583289853,0.376793,109650.0,109640.0,1.73795317]
[1749583290065,0.376793,109650.0,109640.0,1.83763317]
[1749583290274,0.376793,109650.0,109640.0,1.8017522]
[1749583290505,0.376793,109650.0,109640.0,1.83763317]
[1749583290717,0.376793,109650.0,109640.0,1.08248363]
[1749583290929,0.376793,109650.0,109640.0,1.8017522]
[1749583291820,0.376793,109650.0,109640.0,1.08248363]
[1749583292032,0.376793,109650.0,109640.0,1.8017522]
[1749583292453,0.376793,109650.0,109640.0,1.85557366]
[1749583293400,0.02757706,109650.0,109640.0,1.78877366]
[1749583293629,0.02757706,109650.0,109640.0,1.7349522]
[1749583293858,0.03687565,109650.0,109640.0,1.78877366]
[1749583294522,0.03687565,109650.0,109640.0,1.78977366]
[1749583295200,0.00929859,109650.0,109640.0,1.88112706]
[1749583295467,0.00929859,109650.0,109640.0,1.69982706]
[1749583295699,0.00929859,109650.0,109640.0,2.19572706]
[1749583297242,0.00929859,109650.0,109640.0,2.17982343]
[1749583298499,0.027354,109670.0,109660.0,0.2]
[1749583298706,0.027354,109670.0,109660.0,1.01894857]
[1749583298920,0.36734821,109690.0,109660.0,1.8425314]
[1749583298921,0.02812,109690.0,109660.0,1.8425314]
[1749583299129,0.11961867,109690.0,109670.0,0.09992]
[1749583299343,0.14692153,109690.0,109680.0,0.81918857]
[1749583299779,0.15600375,109690.0,109680.0,0.09992]
[1749583299986,0.15600375,109690.0,109680.0,0.39172]
[1749583300201,0.15523375,109690.0,109680.0,0.39172]
[1749583300411,0.06388035,109690.0,109680.0,1.11098857]
[1749583300844,0.06388035,109690.0,109680.0,0.40738047]
[1749583301061,0.06388035,109690.0,109680.0,1.12664904]
[1749583301481,0.06388035,109690.0,109680.0,0.40738047]
[1749583302232,0.06388035,109690.0,109680.0,0.30746047]
[1749583302550,1.50742052,109690.0,109680.0,0.01566047]
[1749583302787,0.70591515,109690.0,109680.0,0.01566047]
[1749583303005,0.51446653,109690.0,109680.0,0.01566047]
[1749583303231,1.23373477,109690.0,109680.0,0.01566047]
[1749583303495,1.4251833,109690.0,109680.0,0.01566047]
[1749583303712,1.24285128,109690.0,109680.0,0.01566047]
[1749583303923,0.52358271,109690.0,109680.0,0.01566047]
[1749583304136,0.5144662,109690.0,109680.0,0.01566047]
[1749583304365,0.52358263,109690.0,109680.0,0.01566047]
[1749583304791,1.2428512,109690.0,109680.0,0.01566047]
[1749583304995,1.25196771,109690.0,109680.0,0.01566047]
[1749583305198,1.43429973,109690.0,109680.0,0.01566047]
[1749583305627,1.41606728,109690.0,109680.0,0.01566047]
[1749583305838,1.06838525,109680.0,109670.0,0.09988]
[1749583306055,1.1870896,109680.0,109670.0,0.09988]
[1749583306273,1.17797242,109680.0,109670.0,0.09988]
[1749583306695,1.19620678,109680.0,109670.0,0.09988]
[1749583306903,1.18708952,109680.0,109670.0,0.09988]
[1749583307116,1.19620686,109680.0,109650.0,0.60076555]
[1749583307371,0.34,109660.0,109650.0,0.60076555]
[1749583307587,0.81062197,109670.0,109650.0,0.30896555]
[1749583307795,0.83797697,109670.0,109650.0,0.27308272]
[1749583308011,0.83797697,109670.0,109660.0,0.09984]
[1749583308224,0.1187084,109670.0,109660.0,0.09984]
[1749583308910,0.83797697,109670.0,109660.0,0.09984]
[1749583309746,1.17797697,109670.0,109660.0,0.09984]
[1749583309988,0.4587084,109670.0,109660.0,0.09984]
[1749583310850,0.34,109660.0,109650.0,0.32130809]
[1749583311063,0.34,109660.0,109650.0,1.14029666]
[1749583311286,0.34,109660.0,109650.0,1.04057666]
[1749583311497,0.34,109660.0,109650.0,0.48558809]
[1749583311709,0.34,109660.0,109650.0,1.20485666]
[1749583312140,0.027355,109670.0,109650.0,1.20485666]
[1749583314726,0.367355,109670.0,109650.0,0.48558809]
[1749583316230,0.75761606,109690.0,109670.0,0.2]
[1749583316468,0.03757649,109690.0,109680.0,0.0994]
[1749583316677,1.09684506,109690.0,109680.0,0.0994]
[1749583317945,1.09684506,109690.0,109670.0,0.24800826]
[1749583318159,1.09684506,109690.0,109680.0,0.09932]
[1749583318375,0.37757649,109690.0,109680.0,0.09932]
[1749583318585,0.37757649,109690.0,109680.0,0.13162]
[1749583319030,0.37757649,109690.0,109680.0,0.16750283]
[1749583319653,0.37757649,109690.0,109680.0,0.13520283]
[1749583321583,0.37757649,109690.0,109680.0,0.16750283]
[1749583322006,0.37757649,109690.0,109680.0,0.13520283]
[1749583322214,1.09684506,109690.0,109680.0,0.13520283]
[1749583322641,0.46892989,109690.0,109680.0,0.03588283]
[1749583322931,0.37757649,109690.0,109680.0,0.13760283]
[1749583323137,0.37757649,109690.0,109680.0,0.20050283]
[1749583324212,0.37757649,109690.0,109680.0,0.16462]
[1749583324422,0.00114527,109690.0,109680.0,0.88388857]
[1749583324836,0.34114527,109690.0,109680.0,0.16462]
[1749583325878,0.33912527,109690.0,109680.0,0.16562]
[1749583327060,0.04367978,109700.0,109680.0,0.36562]
[1749583327300,0.7634325,109700.0,109680.0,0.36562]
[1749583327497,0.04416393,109700.0,109680.0,0.36562]
[1749583327739,0.34,109690.0,109680.0,0.36562]
[1749583327864,0.34,109690.0,109680.0,0.30264]
[1749583328082,0.34,109690.0,109680.0,0.3348]
[1749583328083,1.05926857,109690.0,109680.0,0.3348]
[1749583328513,0.34,109690.0,109680.0,0.3681]
[1749583329375,0.04416393,109700.0,109680.0,0.864]
[1749583329544,0.7634325,109700.0,109680.0,0.864]
[1749583329716,0.71926857,109690.0,109680.0,0.864]
[1749583329920,0.71926857,109690.0,109680.0,1.1558]
[1749583330610,0.04416393,109700.0,109680.0,1.1558]
[1749583330787,0.71926857,109690.0,109680.0,1.1558]
[1749583331643,0.71926857,109690.0,109680.0,1.0542]
[1749583331644,1.05926857,109690.0,109680.0,1.0542]
[1749583331850,1.05926857,109690.0,109680.0,1.15564]
[1749583332055,1.05926857,109690.0,109680.0,1.0901]
[1749583332475,1.08661757,109690.0,109680.0,1.0901]
[1749583333732,1.08661757,109690.0,109680.0,0.7887]
[1749583333733,1.17797097,109690.0,109680.0,0.7887]
[1749583333928,1.18708698,109690.0,109680.0,0.88998]
[1749583334347,1.19620316,109690.0,109680.0,0.88998]
[1749583334569,0.47693459,109690.0,109680.0,0.88998]
[1749583334990,1.19620316,109690.0,109680.0,0.88998]
[1749583335393,1.19620308,109690.0,109680.0,0.88998]
[1749583335599,1.17797097,109690.0,109680.0,0.88998]
[1749583335797,1.19620292,109690.0,109680.0,0.88998]
[1749583336441,1.18708682,109690.0,109680.0,0.88998]
[1749583336654,1.19620283,109690.0,109680.0,0.88998]
[1749583337040,1.21443528,109690.0,109680.0,0.88998]
[1749583337221,1.20531893,109690.0,109680.0,0.88998]
[1749583337419,1.20531893,109690.0,109680.0,0.7887]
[1749583337626,1.20531901,109690.0,109680.0,0.3938]
[1749583338283,1.19620292,109690.0,109680.0,0.3938]
[1749583338490,1.19620283,109690.0,109680.0,0.3938]
[1749583338693,1.20531901,109690.0,109680.0,0.3938]
[1749583339092,1.21443527,109690.0,109680.0,0.3938]
[1749583339291,1.18708682,109690.0,109680.0,0.3938]
[1749583339523,1.19620292,109690.0,109680.0,0.3938]
[1749583339749,0.47693426,109690.0,109680.0,0.3938]
[1749583339947,1.20531901,109690.0,109680.0,0.3938]
[1749583340160,1.20531893,109690.0,109680.0,0.3938]
[1749583340365,1.18708682,109690.0,109680.0,0.39372]
[1749583340566,1.19620283,109690.0,109680.0,0.40972]
[1749583340979,1.20531901,109690.0,109680.0,0.40972]
[1749583341198,1.19620283,109690.0,109680.0,0.40972]
[1749583341418,0.47693426,109690.0,109680.0,0.40972]
[1749583341641,1.19620283,109690.0,109680.0,0.40972]
[1749583342050,1.20531901,109690.0,109680.0,0.40972]
[1749583342266,1.18708682,109690.0,109680.0,0.40972]
[1749583342474,1.19620283,109690.0,109680.0,0.40972]
[1749583343126,1.18708682,109690.0,109680.0,0.40972]
[1749583343321,1.19620283,109690.0,109680.0,0.40972]
[1749583343534,1.18708682,109690.0,109680.0,0.40972]
[1749583344133,1.19620275,109690.0,109680.0,0.40872]
[1749583345516,1.20531876,109690.0,109680.0,0.40872]
[1749583345766,1.1870869,109690.0,109680.0,0.40872]
[1749583345997,1.20733097,109690.0,109680.0,0.47232]
[1749583346640,1.20733097,109690.0,109680.0,0.3714]
[1749583346853,1.20733097,109690.0,109680.0,0.47188]
[1749583347543,1.17797097,109690.0,109680.0,0.47288]
[1749583348509,1.08661757,109690.0,109680.0,0.67288]
[1749583350150,0.367349,109690.0,109680.0,0.67288]
[1749583350382,1.08661757,109690.0,109680.0,0.67288]
[1749583350802,0.367349,109690.0,109680.0,0.67288]
[1749583351017,0.367349,109690.0,109680.0,0.70868324]
[1749583351418,1.08661757,109690.0,109680.0,0.70868324]
[1749583352687,0.74661757,109690.0,109680.0,1.16878]
[1749583354315,0.027349,109690.0,109680.0,0.67288]
[1749583354522,0.027349,109690.0,109680.0,1.16878]
[1749583354759,1.08661757,109690.0,109680.0,1.16878]
[1749583355446,1.08661757,109690.0,109680.0,1.16866]
[1749583356658,1.08661757,109690.0,109680.0,1.0683]
[1749583356829,1.08661757,109690.0,109680.0,1.16862]
[1749583358350,1.08661757,109690.0,109680.0,0.67272]
[1749583360826,0.367349,109690.0,109680.0,0.67272]
[1749583360984,1.08661757,109690.0,109680.0,0.67272]
[1749583363536,1.08661757,109690.0,109680.0,0.70828324]
[1749583364490,1.08661757,109690.0,109680.0,0.70816324]
[1749583364711,0.367349,109690.0,109680.0,0.70816324]
[1749583364927,1.08661757,109690.0,109680.0,0.70816324]
[1749583365760,1.08661757,109690.0,109680.0,0.60820324]
[1749583366178,1.08661757,109690.0,109680.0,0.70808324]
[1749583367016,1.09573358,109690.0,109680.0,0.60820324]
[1749583367227,1.18708698,109690.0,109680.0,0.54460324]
[1749583367470,1.23399951,109690.0,109680.0,0.60856]
[1749583368090,1.22488316,109690.0,109680.0,0.60856]
[1749583368299,0.50561459,109690.0,109680.0,0.60852]
[1749583368560,1.23399951,109690.0,109680.0,0.60852]
[1749583368976,1.22488316,109690.0,109680.0,0.60852]
[1749583369609,1.41633144,109690.0,109680.0,0.3088]
[1749583369816,1.40721568,109690.0,109680.0,0.40844]
[1749583370231,1.40721568,109690.0,109680.0,0.3088]
[1749583370437,1.40721568,109690.0,109680.0,0.40844]
[1749583370644,1.23400026,109690.0,109680.0,0.40844]
[1749583370849,1.41633228,109690.0,109680.0,0.40844]
[1749583371052,1.41633228,109690.0,109680.0,0.4084]
[1749583371538,1.23400026,109690.0,109680.0,0.4084]
[1749583371693,1.23400026,109690.0,109680.0,0.3088]
[1749583371901,1.41633228,109690.0,109680.0,0.40836]
[1749583373492,1.41633228,109690.0,109680.0,0.3088]
[1749583373706,1.42175687,109690.0,109680.0,0.40824]
[1749583374132,1.51311027,109690.0,109680.0,0.3088]
[1749583374330,1.50399384,109690.0,109680.0,0.3088]
[1749583374532,1.49487724,109690.0,109680.0,0.3088]
[1749583374735,1.40352384,109690.0,109680.0,0.3088]
[1749583375146,1.41264035,109690.0,109680.0,0.3088]
[1749583375365,1.42175661,109690.0,109680.0,0.3088]
[1749583376205,1.52515661,109690.0,109680.0,0.3088]
[1749583376747,1.42575661,109690.0,109680.0,0.3088]
[1749583377776,1.42575661,109690.0,109680.0,0.29968851]
[1749583378204,1.42575661,109690.0,109680.0,0.2905769]
[1749583378603,1.42575661,109690.0,109680.0,0.28146529]
[1749583378988,1.42575661,109690.0,109680.0,0.27235368]
[1749583379398,1.42575661,109690.0,109680.0,0.26324207]
[1749583379940,1.51711001,109690.0,109680.0,0.25413046]
[1749583380319,1.42575661,109690.0,109680.0,0.24501885]
[1749583380549,0.67780804,109690.0,109680.0,0.24501885]
[1749583380757,1.42575661,109690.0,109680.0,0.26700724]
[1749583381112,1.42575661,109690.0,109680.0,0.25789563]
[1749583381648,1.42487661,109690.0,109680.0,0.25789563]
[1749583381820,1.39707661,109690.0,109680.0,0.28849563]
[1749583382017,1.24254459,109690.0,109680.0,0.28849563]
[1749583382219,1.42487661,109690.0,109680.0,0.28849563]
[1749583383240,1.46349454,109690.0,109680.0,0.28849563]
[1749583383694,1.46349454,109690.0,109680.0,0.22679563]
[1749583384439,1.46349454,109690.0,109680.0,0.25799563]
[1749583384868,1.46349454,109690.0,109680.0,0.28799563]
[1749583385304,1.46349454,109690.0,109670.0,0.25739563]
[1749583385305,0.53146591,109680.0,109670.0,0.25739563]
[1749583385507,2.07047346,109680.0,109670.0,0.35639563]
[1749583386023,2.18918186,109680.0,109670.0,0.35639563]
[1749583386458,2.18918186,109680.0,109670.0,0.32579563]
[1749583386581,0.54061283,109670.0,109660.0,0.3224]
[1749583386787,1.3512348,109670.0,109660.0,0.3224]
[1749583387291,1.36035306,109670.0,109660.0,0.3224]
[1749583387803,1.46994553,109670.0,109660.0,0.3224]
[1749583388040,1.50174553,109670.0,109660.0,0.3224]
[1749583388276,1.50174553,109670.0,109660.0,0.42124]
[1749583388507,1.50174553,109670.0,109660.0,0.3224]
[1749583388760,1.50474553,109670.0,109660.0,0.3224]
[1749583389477,1.50474553,109670.0,109660.0,0.3546]
[1749583391146,1.50474553,109670.0,109660.0,0.0628]
[1749583391677,1.47694553,109670.0,109660.0,0.0628]
[1749583391874,1.50474553,109670.0,109660.0,0.0628]
[1749583392422,0.66632356,109670.0,109660.0,0.0628]
[1749583392627,1.41339213,109670.0,109660.0,0.0628]
[1749583393191,1.41339213,109670.0,109660.0,0.356169]
[1749583393596,1.41339213,109670.0,109660.0,0.37296413]
[1749583394023,1.41339213,109670.0,109660.0,0.356169]
[1749583394227,1.44003029,109670.0,109660.0,0.356169]
[1749583394404,1.46783029,109670.0,109660.0,0.356169]
[1749583394638,1.46783029,109670.0,109660.0,0.3729668]
[1749583395585,1.45871211,109670.0,109660.0,0.356169]
[1749583395787,1.45871211,109670.0,109660.0,0.37296471]
[1749583396181,1.44959385,109670.0,109660.0,0.37296471]
[1749583396994,1.44959385,109670.0,109660.0,0.31016471]
[1749583397219,1.44959385,109670.0,109660.0,0.293369]
[1749583397443,1.44959385,109670.0,109660.0,0.34266971]
[1749583398095,1.44959385,109670.0,109660.0,0.325869]
[1749583398524,1.4842347,109670.0,109660.0,0.2842554]
[1749583398993,1.4842347,109670.0,109660.0,0.2751418]
[1749583399420,1.4641347,109670.0,109660.0,0.2660282]
[1749583399627,1.4641347,109670.0,109660.0,0.2569146]
[1749583400050,1.4641347,109670.0,109660.0,0.247801]
[1749583400466,1.4641347,109670.0,109660.0,0.2386874]
[1749583400678,1.5826347,109670.0,109660.0,0.2386874]
[1749583400879,1.4842347,109670.0,109660.0,0.2386874]
[1749583401506,1.4641347,109670.0,109660.0,0.2386874]
[1749583402905,0.53150091,109660.0,109650.0,0.2994874]
[1749583403104,1.34212288,109660.0,109650.0,0.41457419]
[1749583403675,1.34212288,109660.0,109650.0,0.31629291]
[1749583403884,1.43347628,109660.0,109650.0,0.41453327]
[1749583404098,1.43447628,109660.0,109650.0,0.29963267]
[1749583404299,1.43447628,109660.0,109650.0,0.41467877]
[1749583404504,1.44901713,109660.0,109650.0,0.14569163]
[1749583404722,1.44901713,109660.0,109650.0,0.04745163]
[1749583404929,0.5315183,109650.0,109640.0,0.3021874]
[1749583405221,1.35125994,109650.0,109640.0,0.4004274]
[1749583406045,1.1688614,109650.0,109640.0,0.4004274]
[1749583406253,1.1688614,109650.0,109640.0,0.4003874]
[1749583406254,1.1779809,109650.0,109640.0,0.4003874]
[1749583406703,1.1809809,109650.0,109640.0,0.4003474]
[1749583407512,1.45473284,109650.0,109640.0,0.4003474]
[1749583407641,1.48309484,109650.0,109640.0,0.4003474]
[1749583408693,0.76382627,109650.0,109640.0,0.4003474]
[1749583408890,1.48309484,109650.0,109640.0,0.4002274]
[1749583409453,1.3006963,109650.0,109640.0,0.4002274]
[1749583409656,1.30069555,109650.0,109640.0,0.4002274]
[1749583409774,1.22758175,109650.0,109640.0,0.4001874]
[1749583409983,1.21846191,109650.0,109640.0,0.4001874]
[1749583410184,0.49919334,109650.0,109640.0,0.4001874]
[1749583410396,1.21846191,109650.0,109640.0,0.4001874]
[1749583410601,1.23714215,109650.0,109640.0,0.4001874]
[1749583410899,1.20934215,109650.0,109640.0,0.4001874]
[1749583411111,1.23714215,109650.0,109640.0,0.4001874]
[1749583411718,1.24626191,109650.0,109640.0,0.4001874]
[1749583411931,1.24626182,109650.0,109640.0,0.3021874]
[1749583412137,1.51089501,109650.0,109640.0,0.3021874]
[1749583412344,1.50177542,109650.0,109640.0,0.4000274]
[1749583412546,1.52543619,109650.0,109640.0,0.16134]
[1749583413180,1.52543619,109650.0,109640.0,0.0635]
[1749583413397,1.49763619,109650.0,109640.0,0.0325]
[1749583413598,1.52459619,109650.0,109640.0,0.1303]
[1749583413814,0.79620795,109650.0,109640.0,0.1303]
[1749583414065,1.51547652,109650.0,109640.0,0.1303]
[1749583414279,1.51547652,109650.0,109640.0,0.002]
[1749583414485,1.51547652,109650.0,109640.0,0.09972]
[1749583415303,1.51547652,109650.0,109640.0,0.002]
[1749583415713,0.79620795,109650.0,109640.0,0.002]
[1749583415915,1.42412312,109650.0,109640.0,0.002]
[1749583416135,1.39716312,109650.0,109640.0,0.0647]
[1749583416404,0.031362,109650.0,109640.0,1.08180857]
[1749583416570,0.031362,109650.0,109640.0,0.41624486]
[1749583416770,0.031362,109650.0,109640.0,0.36254]
[1749583416970,0.031362,109650.0,109640.0,0.45095976]
[1749583417713,0.031362,109650.0,109640.0,0.37935328]
[1749583418134,0.031362,109650.0,109640.0,0.37935177]
[1749583418488,0.031362,109650.0,109640.0,0.45095825]
[1749583418904,0.031362,109650.0,109640.0,0.45095733]
[1749583419111,0.031362,109650.0,109640.0,0.37935085]
[1749583419325,0.031362,109650.0,109640.0,0.45095733]
[1749583419487,0.004,109650.0,109640.0,1.3952259]
[1749583419698,0.004,109650.0,109640.0,1.56976845]
[1749583419903,0.004,109650.0,109640.0,1.58657027]
[1749583420335,0.004,109650.0,109640.0,1.51496379]
[1749583420552,0.74705444,109680.0,109640.0,1.51496379]
[1749583420553,0.02778587,109680.0,109660.0,0.2625]
[1749583420769,0.34,109680.0,109670.0,0.16022]
[1749583420978,1.08662057,109680.0,109670.0,0.16022]
[1749583421186,1.08662057,109680.0,109670.0,0.17701596]
[1749583421837,1.08662057,109680.0,109670.0,0.16022]
[1749583422863,1.08762057,109680.0,109670.0,0.16022]
[1749583423096,1.08662057,109680.0,109670.0,0.16022]
[1749583423281,1.08862057,109680.0,109670.0,0.16022]
[1749583424191,1.09162057,109680.0,109670.0,0.16022]
[1749583424812,1.11935718,109680.0,109670.0,0.16022]
[1749583425016,1.11935718,109680.0,109670.0,0.16650878]
[1749583425220,0.37273661,109680.0,109670.0,0.19150871]
[1749583425437,0.37273661,109680.0,109670.0,0.24526057]
[1749583425846,0.37273661,109680.0,109670.0,0.24525956]
[1749583426693,0.37273661,109680.0,109670.0,1.06452331]
[1749583426694,0.345,109680.0,109670.0,1.06452331]
[1749583426902,0.345,109680.0,109670.0,0.34525474]
[1749583427318,0.345,109680.0,109670.0,0.34525427]
[1749583427524,0.345,109680.0,109670.0,0.33897186]
[1749583427726,0.345,109680.0,109670.0,0.34525407]
[1749583429402,0.345,109680.0,109670.0,0.34524713]
[1749583429651,0.345,109680.0,109670.0,0.34524714]
[1749583429862,0.345,109680.0,109670.0,0.34524713]
[1749583430078,0.345,109680.0,109670.0,1.0645157]
[1749583430287,0.345,109680.0,109670.0,1.06451309]
[1749583430508,0.345,109680.0,109670.0,0.34524431]
[1749583430727,0.345,109680.0,109670.0,0.34524429]
[1749583430932,0.345,109680.0,109670.0,0.33897186]
[1749583431138,0.345,109680.0,109670.0,0.34524429]
[1749583432173,0.345,109680.0,109670.0,0.34524301]
[1749583432591,0.345,109680.0,109670.0,0.345243]
[1749583434270,0.345,109680.0,109670.0,0.3452404]
[1749583434681,0.345,109680.0,109670.0,0.29148854]
[1749583435298,0.345,109680.0,109670.0,0.28522]
[1749583435514,0.71926857,109690.0,109680.0,0.2627]
[1749583435719,0.71926857,109690.0,109680.0,1.14792]
[1749583435926,0.04416702,109700.0,109690.0,0.0613]
[1749583436132,0.84567228,109700.0,109690.0,0.16504801]
[1749583436348,0.83655701,109700.0,109690.0,0.16504805]
[1749583436555,0.87302019,109700.0,109690.0,0.16504805]
[1749583436755,0.86390501,109700.0,109690.0,0.16504805]
[1749583436932,0.86390501,109700.0,109690.0,0.16504843]
[1749583437173,0.86390501,109700.0,109690.0,0.15878]
[1749583437375,0.86390501,109700.0,109690.0,0.16504843]
[1749583437583,0.86890501,109700.0,109690.0,0.16504843]
[1749583438189,0.87802019,109700.0,109690.0,0.16504843]
[1749583438395,1.21802019,109700.0,109690.0,0.06756843]
[1749583438603,0.48252142,109700.0,109690.0,0.13386952]
[1749583438812,1.21090501,109700.0,109690.0,0.16456952]
[1749583439459,1.20178999,109700.0,109690.0,0.16456952]
[1749583440100,1.20178999,109700.0,109690.0,0.16457151]
[1749583440313,0.48252142,109700.0,109690.0,0.16457151]
[1749583440512,1.20178999,109700.0,109690.0,0.16457151]
[1749583440712,1.20178999,109700.0,109690.0,0.16457122]
[1749583441297,0.48252142,109700.0,109690.0,0.45637122]
[1749583441507,1.11043659,109700.0,109690.0,0.45637122]
[1749583441913,1.11043659,109700.0,109690.0,0.4501]
[1749583442131,1.11043659,109700.0,109690.0,0.45637176]
[1749583442341,1.10843659,109700.0,109690.0,0.45637141]
[1749583442747,1.10543659,109700.0,109690.0,0.45637141]
[1749583442944,1.10843659,109700.0,109690.0,0.45637141]
[1749583443180,1.10843659,109700.0,109690.0,0.4591786]
[1749583443593,1.10843659,109700.0,109690.0,0.45918236]
[1749583443795,1.10843659,109700.0,109690.0,0.45290719]
[1749583444002,1.10843659,109700.0,109690.0,0.45918236]
[1749583445068,0.38916802,109700.0,109690.0,0.45918236]
[1749583445522,1.10843659,109700.0,109690.0,0.45918853]
[1749583446102,1.10843659,109700.0,109690.0,0.45290719]
[1749583446287,1.10843659,109700.0,109690.0,0.45920034]
[1749583446690,1.10843659,109700.0,109690.0,0.45920036]
[1749583446895,0.38916802,109700.0,109690.0,0.45920003]
[1749583447105,1.10843659,109700.0,109690.0,0.45919942]
[1749583447310,1.10843659,109700.0,109690.0,0.50665905]
[1749583447506,1.10843659,109700.0,109690.0,0.512951]
[1749583447710,1.10843659,109700.0,109690.0,0.51295603]
[1749583448174,1.10643659,109700.0,109690.0,0.51295603]
[1749583448384,1.10843659,109700.0,109690.0,0.51295603]
[1749583448577,1.10843659,109700.0,109690.0,0.51295533]
[1749583448780,1.10543659,109700.0,109690.0,0.51295533]
[1749583448980,1.07808859,109700.0,109690.0,0.51295533]
[1749583449141,1.07908859,109700.0,109690.0,0.51295533]
[1749583449337,1.07708859,109700.0,109690.0,0.51295533]
[1749583450227,0.35782002,109700.0,109690.0,0.51295533]
[1749583450554,0.35782002,109700.0,109690.0,0.51295931]
[1749583450819,0.35782002,109700.0,109690.0,0.50665905]
[1749583450967,0.35782002,109700.0,109690.0,0.51295911]
[1749583451370,0.35782002,109700.0,109690.0,0.51296078]
[1749583451773,0.34148424,109700.0,109690.0,0.26549164]
[1749583452010,0.00148424,109700.0,109690.0,0.33111419]
[1749583452213,0.00148424,109700.0,109690.0,0.25802905]
[1749583452440,0.00148424,109700.0,109690.0,0.45526903]
[1749583452619,0.02715136,109700.0,109690.0,0.45526903]
[1749583452818,0.00048424,109700.0,109690.0,0.52835175]
[1749583453270,0.00048424,109700.0,109690.0,0.53035175]
[1749583453492,0.00048424,109700.0,109690.0,0.43311175]
[1749583453736,0.00048424,109700.0,109690.0,0.53039175]
[1749583453955,0.00048424,109700.0,109690.0,0.53038815]
[1749583454197,0.00048424,109700.0,109690.0,0.53038816]
[1749583454400,0.00048424,109700.0,109690.0,0.53009504]
[1749583454610,0.00048424,109700.0,109690.0,0.43481504]
[1749583454829,0.02614264,109700.0,109690.0,1.25128361]
[1749583455031,0.00048424,109700.0,109690.0,1.25128361]
[1749583455234,0.00048424,109700.0,109690.0,1.25128362]
[1749583455436,0.00048424,109700.0,109690.0,1.24498791]
[1749583455654,0.00048424,109700.0,109690.0,1.25128358]
[1749583455884,0.00048424,109700.0,109690.0,1.24498791]
[1749583456131,0.00048424,109700.0,109690.0,1.17820113]
[1749583456359,0.00048424,109700.0,109690.0,0.43673256]
[1749583456584,0.71975281,109700.0,109690.0,0.44537645]
[1749583456810,0.71975281,109700.0,109690.0,0.54253645]
[1749583457026,0.34048424,109700.0,109690.0,0.83433645]
[1749583457487,0.36557485,109700.0,109690.0,0.83433698]
[1749583457685,0.36557485,109700.0,109690.0,0.83429696]
[1749583457896,0.36557485,109700.0,109690.0,0.83429686]
[1749583458317,0.36557485,109700.0,109690.0,0.82800322]
[1749583458516,0.02557485,109700.0,109690.0,0.83429651]
[1749583458735,0.36557485,109700.0,109690.0,0.73717651]
[1749583458952,0.36557485,109700.0,109690.0,0.83425651]
[1749583459455,0.34048424,109700.0,109690.0,0.83425644]
[1749583459692,0.34048424,109700.0,109690.0,0.82796322]
[1749583459898,0.34048424,109700.0,109690.0,0.83425632]
[1749583460323,0.36622947,109700.0,109690.0,0.83425632]
[1749583460835,0.00048424,109700.0,109690.0,1.55352329]
[1749583461080,0.00048424,109700.0,109690.0,1.54723179]
[1749583461309,0.00048424,109700.0,109690.0,0.95060732]
[1749583461523,0.00048424,109700.0,109690.0,1.66987587]
[1749583461982,0.34,109720.0,109710.0,0.49131576]
[1749583462254,0.34013239,109720.0,109710.0,0.71281725]
[1749583462430,0.34013239,109720.0,109710.0,0.71281473]
[1749583462835,0.00013239,109720.0,109710.0,0.71281461]
[1749583463048,0.00013239,109720.0,109710.0,0.70652657]
[1749583463236,0.00013239,109720.0,109710.0,0.71281413]
[1749583463448,0.00013239,109720.0,109710.0,1.23371413]
[1749583463822,0.34013239,109720.0,109710.0,1.33371413]
[1749583463998,0.34113239,109720.0,109710.0,1.33371413]
[1749583464197,0.00113239,109720.0,109710.0,1.33371182]
[1749583464399,0.00113239,109720.0,109710.0,2.05298039]
[1749583464622,0.00113239,109720.0,109710.0,2.04433168]
[1749583464819,0.00113239,109720.0,109710.0,1.99065992]
[1749583465075,0.00113239,109720.0,109710.0,1.99065962]
[1749583465247,0.00013239,109720.0,109710.0,1.99065962]
[1749583465448,0.00013239,109720.0,109710.0,1.89321962]
[1749583465656,0.00013239,109720.0,109710.0,1.32756458]
[1749583465873,0.34013239,109720.0,109710.0,0.52227542]
[1749583466232,0.34013239,109720.0,109710.0,0.52227605]
[1749583466675,0.34013239,109720.0,109710.0,1.62421378]
[1749583466893,0.00013239,109720.0,109710.0,0.90494521]
[1749583467120,0.00013239,109720.0,109710.0,1.62421378]
[1749583467357,0.00013239,109720.0,109710.0,0.90494241]
[1749583467566,0.00013239,109720.0,109710.0,1.62421098]
[1749583467760,0.00013239,109720.0,109710.0,1.62421097]
[1749583467976,0.00013239,109720.0,109710.0,1.62421159]
[1749583468401,0.00013239,109720.0,109710.0,0.80766302]
[1749583468593,0.00013239,109720.0,109710.0,1.61845126]
[1749583468826,0.00013239,109720.0,109710.0,1.52693121]
[1749583469049,0.00013239,109720.0,109710.0,0.90550264]
[1749583469252,0.00013239,109720.0,109710.0,0.90550319]
[1749583469708,0.34013239,109720.0,109710.0,0.71630979]